bitfinex-derivatives/quotes_ETHF0:USTF0_20250309
["timestamp","ask_amount","ask_price","bid_price","bid_amount"]
[1741506331646,4.38484,2185.2,2185.1,3.54e-06]
[1741506332351,8.38484,2185.2,2185.1,3.54e-06]
[1741506335864,4.38484,2185.2,2185.1,3.54e-06]
[1741506339453,0.54937,2184.7,2184.6,1.2524]
[1741506361468,0.54942,2184.5,2184.4,1.23165354]
[1741506361670,0.54942,2184.5,2184.4,1.88245354]
[1741506362775,0.54942,2184.5,2184.4,1.26445354]
[1741506377994,0.54942,2184.5,2184.4,0.00685354]
[1741506385110,0.6501,2184.7,2184.4,0.00685354]
[1741506385296,0.54942,2184.5,2184.4,0.00685354]
[1741506396414,3.75722,2184.5,2184.4,0.00685354]
[1741506396709,0.54952,2184.1,2184.0,20.551]
[1741506399804,1.16062,2184.1,2184.0,20.551]
[1741506401314,0.54957,2183.9,2183.8,0.00685354]
[1741506401510,3.75737,2183.9,2183.8,0.00685354]
[1741506402012,4.38917,2183.9,2183.8,0.00685354]
[1741506404809,3.8396,2183.9,2183.4,3.2078]
[1741506405007,0.54967,2183.5,2183.4,3.2078]
[1741506408915,1.18717,2183.5,2183.4,3.2078]
[1741506412414,1.18717,2183.5,2183.4,3.8499]
[1741506413319,0.54967,2183.5,2183.4,3.8499]
[1741506415821,3.2078,2183.9,2183.5,0.54965]
[1741506416118,3.2078,2183.9,2183.5,1.17095]
[1741506416119,0.54964,2183.7,2183.5,1.17095]
[1741506416316,0.54964,2183.7,2183.6,0.632]
[1741506417816,1.96,2184.0,2183.6,0.632]
[1741506418019,1.8714,2184.1,2183.9,0.54956]
[1741506418320,6.1888,2184.2,2183.5,2.5813]
[1741506418321,0.54958,2183.9,2183.8,3.2078]
[1741506418521,0.54958,2183.9,2183.8,3.8465]
[1741506419214,0.54956,2184.0,2183.8,3.8465]
[1741506419410,3.2078,2184.2,2183.9,0.6472]
[1741506419620,0.54952,2184.1,2183.9,1.19675]
[1741506421321,0.54952,2184.1,2183.9,3.15675]
[1741506421523,3.2078,2184.2,2183.9,3.15675]
[1741506421524,0.54954,2184.0,2183.9,2.6072]
[1741506421925,0.54954,2184.0,2183.9,3.15677]
[1741506422127,3.2078,2184.2,2183.9,3.15677]
[1741506422427,0.54954,2184.1,2183.9,3.15677]
[1741506422928,0.54954,2184.0,2183.9,3.15676]
[1741506423522,0.54954,2184.0,2183.9,2.6072]
[1741506424328,0.54953,2184.1,2183.9,3.15676]
[1741506425329,3.2078,2184.2,2183.9,2.6072]
[1741506425628,0.54951,2184.2,2184.0,0.54953]
[1741506426222,0.00685354,2184.3,2183.9,2.6072]
[1741506426422,0.5495,2184.2,2184.0,0.54952]
[1741506426623,0.54949,2184.2,2184.0,0.54952]
[1741506427527,0.00685354,2184.3,2184.0,0.54954]
[1741506427730,0.54951,2184.2,2184.0,0.54954]
[1741506429044,0.00685354,2184.3,2184.1,0.54952]
[1741506429223,0.55632354,2184.3,2184.2,0.5908]
[1741506429623,0.55632354,2184.3,2184.2,1.14029]
[1741506429834,0.55632354,2184.3,2184.2,0.5908]
[1741506430721,0.00685354,2184.3,2184.2,1.14029]
[1741506430928,0.00685354,2184.3,2184.2,1.75119]
[1741506436633,1.17209,2184.7,2184.5,0.54941]
[1741506436833,1.17209,2184.7,2184.6,0.6414]
[1741506437728,0.54942,2184.5,2184.4,0.00686986]
[1741506437931,3.75722,2184.5,2184.4,1.632e-05]
[1741506438330,3.75722,2184.5,2184.0,20.555]
[1741506438331,0.54952,2184.1,2184.0,20.555]
[1741506438836,0.54952,2184.1,2183.8,3.2078]
[1741506438837,0.54957,2183.9,2183.8,3.2078]
[1741506440532,0.54962,2183.7,2183.6,0.00686986]
[1741506460951,0.54984,2182.9,2182.7,3.2078]
[1741506461151,1.37432,2183.3,2182.7,3.2078]
[1741506461350,0.54985,2182.8,2182.7,3.2078]
[1741506462851,0.00686986,2183.0,2182.7,3.2078]
[1741506463058,0.54985,2182.8,2182.7,3.2078]
[1741506463258,0.54982,2182.9,2182.7,3.2078]
[1741506463456,0.54985,2182.8,2182.7,3.2078]
[1741506463954,0.00686986,2183.0,2182.7,3.2078]
[1741506464154,0.00686986,2183.0,2182.9,0.54982]
[1741506464459,0.55666986,2183.0,2182.8,0.54983]
[1741506465660,0.00686986,2183.0,2182.7,3.2078]
[1741506465853,0.55666986,2183.0,2182.8,0.54983]
[1741506466049,6.54176,2183.9,2182.9,1.96]
[1741506466260,6.54176,2183.9,2183.0,3.75758]
[1741506466261,0.54976,2183.2,2183.0,3.75758]
[1741506466462,0.54976,2183.2,2183.0,3.2078]
[1741506466762,0.54976,2183.2,2183.0,3.75759]
[1741506468458,0.00686986,2183.3,2183.0,3.2078]
[1741506468765,0.54977,2183.2,2183.0,3.75759]
[1741506471267,0.00686986,2183.3,2183.0,3.2078]
[1741506471566,0.54977,2183.1,2183.0,3.2078]
[1741506472160,0.00686986,2183.3,2183.0,3.2078]
[1741506472362,0.54976,2183.2,2183.0,3.75758]
[1741506472664,0.00686986,2183.3,2183.0,3.75758]
[1741506472864,0.54977,2183.1,2183.0,3.2078]
[1741506473366,0.54977,2183.1,2183.0,5.1698]
[1741506478076,0.54977,2183.1,2183.0,3.2078]
[1741506478373,0.5498,2183.0,2182.9,1.96]
[1741506478573,0.54979,2183.1,2182.9,2.50981]
[1741506478871,0.54979,2183.1,2183.0,3.2078]
[1741506481976,1.8662,2183.2,2183.0,3.2078]
[1741506482169,1.8662,2183.2,2183.0,3.75758]
[1741506482371,0.54977,2183.1,2183.0,3.75758]
[1741506483368,2.41595,2183.2,2183.0,3.2078]
[1741506483566,2.41595,2183.2,2183.0,3.75758]
[1741506484275,0.54977,2183.1,2183.0,3.2078]
[1741506484974,1.8662,2183.2,2183.0,3.2078]
[1741506485272,1.8662,2183.2,2183.1,0.54977]
[1741506486069,3.2078,2183.9,2183.1,4.0]
[1741506486270,3.75738,2183.9,2183.7,0.54961]
[1741506486576,3.2078,2183.9,2183.5,1.961]
[1741506486768,3.75739,2183.9,2183.6,0.54965]
[1741506487274,0.54962,2183.7,2183.5,2.51066]
[1741506487472,0.54965,2183.6,2183.5,1.961]
[1741506487674,0.5496,2183.8,2183.6,0.54965]
[1741506487873,0.54959,2183.9,2183.6,0.54965]
[1741506488069,0.5496,2183.8,2183.6,0.54965]
[1741506488263,0.5496,2183.8,2183.7,3.2078]
[1741506488972,0.54959,2183.9,2183.7,3.2078]
[1741506489166,0.00686986,2184.0,2183.7,3.7574]
[1741506489366,1.2079,2183.8,2183.7,3.7574]
[1741506489870,1.8436,2183.8,2183.7,3.7574]
[1741506490075,1.8436,2183.8,2183.6,0.00686986]
[1741506490374,0.54962,2183.7,2183.6,0.00686986]
[1741506491575,0.54962,2183.7,2183.6,1.96686986]
[1741506492168,1.8436,2183.8,2183.6,1.96686986]
[1741506492369,1.8436,2183.8,2183.7,3.2078]
[1741506492370,2.3932,2183.8,2183.7,3.2078]
[1741506494377,1.8436,2183.8,2183.7,3.75742]
[1741506494578,1.8436,2183.8,2183.7,7.75742]
[1741506494778,1.8436,2183.8,2183.7,3.75742]
[1741506498582,1.8436,2183.8,2183.7,3.2078]
[1741506498878,2.39319,2183.8,2183.7,5.1668]
[1741506499273,1.8436,2183.8,2183.7,5.71642]
[1741506504782,1.2377,2183.8,2183.7,6.35182]
[1741506504982,0.6357,2183.8,2183.7,6.35182]
[1741506505783,0.54958,2183.9,2183.7,6.96362]
[1741506505985,0.00686986,2184.0,2183.8,0.54959]
[1741506505986,0.55641986,2184.0,2183.8,0.54959]
[1741506506185,0.55641986,2184.0,2183.8,1.19779]
[1741506509983,0.00686986,2184.0,2183.9,0.54957]
[1741506511989,3.2078,2184.6,2183.8,21.2032]
[1741506512185,0.54948,2184.3,2184.1,0.5495]
[1741506512380,1.2105,2184.5,2184.2,1.2409]
[1741506512691,0.54947,2184.3,2184.2,1.2409]
[1741506513594,0.54945,2184.4,2184.2,1.79039]
[1741506514297,0.00686986,2184.5,2184.2,1.2409]
[1741506514693,0.54944,2184.4,2184.2,1.2409]
[1741506514896,0.54944,2184.4,2184.2,1.79039]
[1741506516395,0.00686986,2184.5,2184.2,1.79039]
[1741506516396,0.00686986,2184.5,2184.2,1.2409]
[1741506516699,0.54946,2184.4,2184.2,1.79039]
[1741506517899,0.54946,2184.4,2184.2,1.2409]
[1741506518499,0.54946,2184.4,2184.2,1.79038]
[1741506518693,0.00686986,2184.5,2184.2,1.2409]
[1741506518899,0.54945,2184.4,2184.2,1.79038]
[1741506519291,0.54944,2184.4,2184.2,1.2409]
[1741506519594,0.54944,2184.4,2184.2,1.79039]
[1741506521198,0.54946,2184.4,2184.2,1.2409]
[1741506521603,0.54946,2184.4,2184.2,1.79039]
[1741506522502,0.54947,2184.3,2184.2,1.2409]
[1741506522805,0.54947,2184.3,2184.2,1.959]
[1741506523902,0.54946,2184.4,2184.2,2.50849]
[1741506524305,0.54946,2184.4,2184.3,1.251]
[1741506525210,0.00686986,2184.5,2184.0,3.75733]
[1741506525211,0.5495,2184.2,2184.0,3.75733]
[1741506525506,0.54951,2184.2,2184.1,1.959]
[1741506526402,0.00686986,2184.5,2184.1,1.959]
[1741506526597,0.00686986,2184.5,2184.4,0.54944]
[1741506528008,0.00686986,2184.5,2184.4,1.78474]
[1741506528205,0.00686986,2184.5,2184.4,2.43934]
[1741506528512,4.36463,2184.9,2184.4,1.8899]
[1741506528707,4.36463,2184.9,2184.7,0.54936]
[1741506528908,4.36463,2184.9,2184.8,1.2794]
[1741506529705,0.6508,2185.0,2184.8,1.2794]
[1741506529903,0.00686986,2185.1,2184.9,1.959]
[1741506530110,0.00686986,2185.1,2185.0,0.54929]
[1741506531304,0.00686986,2185.1,2184.9,2.5752]
[1741506531506,0.55614986,2185.1,2184.9,1.959]
[1741506532515,0.00686986,2185.1,2184.9,2.50832]
[1741506532713,0.55613986,2185.1,2184.9,2.50832]
[1741506533007,0.55613986,2185.1,2184.9,1.959]
[1741506533211,0.00686986,2185.1,2184.9,2.50831]
[1741506533513,0.55614986,2185.1,2184.9,1.959]
[1741506534213,0.00686986,2185.1,2184.9,1.959]
[1741506534407,0.55614986,2185.1,2184.9,1.959]
[1741506535313,0.54929,2185.0,2184.9,1.959]
[1741506535717,0.55614986,2185.1,2184.9,1.959]
[1741506536608,0.55614986,2185.1,2184.9,2.50832]
[1741506537317,0.55614986,2185.1,2184.9,1.959]
[1741506538314,0.55614986,2185.1,2184.9,2.50831]
[1741506541625,0.54929,2185.0,2184.9,1.959]
[1741506541916,0.55615986,2185.1,2184.9,1.959]
[1741506543018,0.54929,2185.0,2184.9,1.959]
[1741506545624,0.55615986,2185.1,2184.9,2.50832]
[1741506546222,0.54929,2185.0,2184.9,1.959]
[1741506546520,0.00686986,2185.1,2184.9,1.959]
[1741506546720,0.55615986,2185.1,2184.9,1.959]
[1741506546921,0.54929,2185.0,2184.9,1.959]
[1741506547618,0.00686986,2185.1,2184.8,25.03906986]
[1741506547819,0.5493,2185.0,2184.9,1.958]
[1741506551221,0.00686986,2185.1,2184.8,23.75966986]
[1741506551222,0.54932,2184.9,2184.8,23.75966986]
[1741506551422,0.54932,2184.9,2184.8,25.71766986]
[1741506553723,0.54932,2184.9,2184.8,23.75966986]
[1741506555326,0.54932,2184.9,2184.8,20.55186986]
[1741506555725,0.54932,2184.9,2184.8,0.00686986]
[1741506557722,4.0,2184.9,2184.5,1.958]
[1741506557926,0.54942,2184.5,2184.4,3.2078]
[1741506558125,3.2078,2184.7,2184.3,20.545]
[1741506558331,1.80264,2184.4,2184.3,20.545]
[1741506566435,0.54944,2184.4,2184.3,21.1371]
[1741506567734,0.54943,2184.5,2184.3,21.1371]
[1741506567933,0.54943,2184.5,2184.4,0.6399]
[1741506569836,1.9014,2184.9,2184.4,0.6399]
[1741506570033,0.5494,2184.6,2184.4,0.6399]
[1741506570728,1.9014,2184.9,2184.4,0.6399]
[1741506570929,0.54942,2184.5,2184.4,0.6399]
[1741506572640,1.9014,2184.9,2184.4,0.6399]
[1741506572842,0.54941,2184.6,2184.4,0.6399]
[1741506575640,0.54942,2184.5,2184.4,0.6399]
[1741506576434,0.5494,2184.6,2184.4,0.6399]
[1741506577342,1.9014,2184.9,2184.4,0.6399]
[1741506578841,0.54942,2184.5,2184.4,0.6399]
[1741506582350,0.54944,2184.4,2184.3,20.545]
[1741506582549,1.19534,2184.4,2184.3,20.545]
[1741506582854,2.41334,2184.4,2184.3,20.545]
[1741506584553,0.54947,2184.3,2184.2,0.623]
[1741506594866,1.8639,2184.4,2184.1,0.00686986]
[1741506595166,0.54949,2184.2,2184.1,0.65526986]
[1741506599765,3.2078,2184.5,2184.1,0.65526986]
[1741506600061,3.2078,2184.5,2184.1,1.20477986]
[1741506600267,0.54948,2184.3,2184.1,0.65526986]
[1741506600760,0.54949,2184.2,2184.1,0.65526986]
[1741506605165,0.54949,2184.2,2184.1,0.00686986]
[1741506612268,0.54949,2184.2,2184.1,0.55636986]
[1741506612469,0.54949,2184.2,2184.1,0.00686986]
[1741506614673,3.2078,2184.5,2184.1,0.00686986]
[1741506614971,0.54949,2184.2,2184.1,0.00686986]
[1741506615971,0.54948,2184.3,2184.1,0.00686986]
[1741506618664,3.2078,2184.8,2184.3,0.54945]
[1741506618864,0.6392,2184.8,2184.4,1.9167]
[1741506619062,0.54942,2184.5,2184.4,1.9167]
[1741506619670,0.54942,2184.5,2184.4,0.6513]
[1741506620768,0.5911,2184.7,2184.2,3.8552]
[1741506620970,0.54947,2184.3,2184.2,5.8132]
[1741506622471,1.96456,2184.7,2184.2,5.8132]
[1741506622768,0.54947,2184.3,2184.2,5.8132]
[1741506622969,3.2078,2184.8,2184.6,0.54938]
[1741506623277,0.54939,2184.6,2184.5,3.2078]
[1741506624277,1.8804,2185.0,2184.5,3.2078]
[1741506624472,0.54938,2184.7,2184.5,3.2078]
[1741506625274,0.54939,2184.6,2184.5,3.2078]
[1741506626673,1.8804,2185.0,2184.5,3.2078]
[1741506626875,0.54933,2184.9,2184.6,2.50738]
[1741506627268,0.54933,2184.9,2184.7,0.6449]
[1741506628376,0.54934,2184.8,2184.7,0.6449]
[1741506630580,1.2497,2185.0,2184.7,0.6449]
[1741506630881,0.54934,2184.9,2184.7,0.6449]
[1741506632880,1.2497,2185.0,2184.7,0.6449]
[1741506633087,0.54934,2184.8,2184.7,0.6449]
[1741506633378,0.54934,2184.9,2184.7,0.6449]
[1741506636886,0.54934,2184.8,2184.7,0.6449]
[1741506637686,0.54934,2184.9,2184.7,0.6449]
[1741506637889,1.2497,2185.0,2184.8,0.54934]
[1741506637890,0.54929,2185.0,2184.8,0.54934]
[1741506638089,0.54929,2185.0,2184.7,1.19425]
[1741506638388,0.54929,2185.0,2184.8,0.54933]
[1741506639087,0.54929,2185.0,2184.7,1.19425]
[1741506640184,0.54929,2185.0,2184.8,0.6151]
[1741506641085,0.54929,2185.0,2184.8,1.2649]
[1741506643281,3.21466986,2185.1,2184.8,1.2649]
[1741506643488,0.54931,2185.0,2184.8,1.2649]
[1741506649194,0.54932,2184.9,2184.8,1.2649]
[1741506649794,0.55614986,2185.1,2184.9,0.54931]
[1741506649994,0.5493,2185.0,2184.8,5.02203]
[1741506650489,0.00686986,2185.1,2184.8,5.02203]
[1741506650688,0.55615986,2185.1,2184.8,5.02203]
[1741506650888,0.00686986,2185.1,2184.8,5.02203]
[1741506651091,0.5493,2185.0,2184.8,5.02203]
[1741506651995,0.5493,2185.0,2184.8,4.4727]
[1741506652194,0.5493,2185.0,2184.8,1.2649]
[1741506652690,0.5493,2185.0,2184.8,4.4727]
[1741506653088,0.5493,2185.0,2184.8,5.02204]
[1741506656292,0.5493,2185.0,2184.8,4.4727]
[1741506656492,0.5493,2185.0,2184.8,5.02204]
[1741506658198,0.00686986,2185.1,2184.8,4.4727]
[1741506658404,0.00686986,2185.1,2185.0,0.54929]
[1741506658703,0.00686986,2185.1,2185.0,2.50729]
[1741506659197,0.00686986,2185.1,2185.0,1.958]
[1741506659595,0.00686986,2185.1,2185.0,2.5699]
[1741506662001,0.00686986,2185.1,2185.0,3.11919]
[1741506662404,1.37266,2186.0,2185.0,3.11919]
[1741506662405,0.6248,2185.5,2185.0,2.5699]
[1741506662598,1.17399,2185.5,2185.2,3.2078]
[1741506662900,0.6248,2185.5,2185.2,3.75704]
[1741506663096,4.4145,2185.7,2185.3,0.6132]
[1741506663303,3.2078,2185.7,2185.6,0.54914]
[1741506663503,3.21466986,2185.7,2185.5,0.54915]
[1741506663705,3.21466986,2185.7,2185.5,1.19185]
[1741506663905,3.21466986,2185.7,2185.6,0.6132]
[1741506664106,3.21466986,2185.7,2185.6,1.16234]
[1741506664309,0.00686986,2185.7,2185.6,4.37014]
[1741506667301,0.54895,2186.4,2186.1,0.549]
[1741506667502,0.54895,2186.4,2186.2,1.957]
[1741506668315,1.866,2186.6,2186.2,1.957]
[1741506668608,1.866,2186.6,2186.3,1.2209]
[1741506668804,1.866,2186.6,2186.3,1.76985]
[1741506669309,3.75668,2186.7,2186.3,1.2209]
[1741506669608,0.54889,2186.6,2186.3,1.76986]
[1741506670409,0.54889,2186.6,2186.4,0.6201]
[1741506674409,3.75669,2186.7,2186.4,0.6201]
[1741506674710,0.54891,2186.6,2186.4,0.6201]
[1741506676003,0.6417,2186.6,2186.4,1.16904]
[1741506676204,3.2078,2186.7,2186.4,0.6201]
[1741506676405,0.54883,2186.9,2186.6,0.54889]
[1741506676611,0.54883,2186.9,2186.7,1.956]
[1741506677002,3.2078,2187.0,2186.7,1.956]
[1741506677815,0.54889,2186.6,2186.5,0.00686986]
[1741506678001,3.75669,2186.6,2186.5,0.00686986]
[1741506687318,0.54899,2186.2,2186.1,5.1638]
[1741506687721,0.54904,2186.0,2185.9,0.6367]
[1741506688020,3.2078,2186.2,2185.8,1.956]
[1741506688021,0.54907,2185.9,2185.8,1.956]
[1741506689313,1.2603,2186.0,2185.7,1.2717]
[1741506689619,1.2603,2186.0,2185.7,3.2277]
[1741506689620,0.54909,2185.8,2185.7,3.2277]
[1741506689816,0.54909,2185.8,2185.7,0.6404]
[1741506690015,0.54912,2185.7,2185.6,22.50586986]
[1741506690222,0.54912,2185.7,2185.6,23.13716986]
[1741506691518,0.54912,2185.7,2185.6,20.54986986]
[1741506694424,0.54912,2185.7,2185.6,0.00686986]
[1741506695025,1.37286,2185.6,2184.8,20.534]
[1741506695220,0.54932,2184.9,2184.8,22.49]
[1741506695421,0.54932,2184.9,2184.8,20.534]
[1741506697234,3.2078,2185.3,2184.6,0.64336986]
[1741506697434,0.54937,2184.7,2184.6,0.00686986]
[1741506700527,0.54944,2184.4,2184.3,1.2443]
[1741506702226,0.54949,2184.2,2184.1,0.00686986]
[1741506706632,0.54949,2184.2,2184.1,1.25236986]
[1741506706833,0.54949,2184.2,2184.1,1.89676986]
[1741506707630,0.54946,2184.4,2184.2,0.54948]
[1741506707833,0.54948,2184.3,2184.1,2.44627986]
[1741506708228,0.54949,2184.2,2184.1,1.89676986]
[1741506709630,0.54948,2184.3,2184.1,1.89676986]
[1741506710227,0.54948,2184.3,2184.1,2.44628986]
[1741506710833,0.54948,2184.3,2184.1,1.89676986]
[1741506711238,3.2078,2184.6,2184.1,1.89676986]
[1741506711438,0.54949,2184.2,2184.1,1.89676986]
[1741506713440,0.54949,2184.2,2184.1,1.25236986]
[1741506713639,0.54949,2184.2,2184.1,0.65756986]
[1741506713935,3.75729,2184.2,2184.1,0.00686986]
[1741506714138,0.54961,2183.8,2183.7,0.6324]
[1741506725138,0.00686986,2184.0,2183.8,0.54959]
[1741506725347,0.00686986,2184.0,2183.8,1.19569]
[1741506726845,0.00686986,2184.0,2183.8,0.6461]
[1741506727144,0.00686986,2184.0,2183.8,1.19568]
[1741506727346,0.55641986,2184.0,2183.8,1.19568]
[1741506727843,0.00686986,2184.0,2183.9,0.54957]
[1741506728041,0.00686986,2184.0,2183.9,3.75737]
[1741506728939,3.8377,2184.5,2183.9,3.2078]
[1741506728940,3.2078,2184.5,2183.9,3.2078]
[1741506729142,3.2078,2184.5,2184.3,0.54946]
[1741506729342,3.2078,2184.5,2184.0,1.958]
[1741506729537,0.54951,2184.2,2184.1,1.1894]
[1741506730749,0.65706986,2184.4,2184.1,1.1894]
[1741506730945,0.54948,2184.3,2184.1,1.73892]
[1741506731146,0.54948,2184.3,2184.1,1.1894]
[1741506731343,0.54949,2184.2,2184.1,1.1894]
[1741506731847,0.54949,2184.3,2184.1,1.1894]
[1741506732049,0.65706986,2184.4,2184.1,1.1894]
[1741506732251,0.54947,2184.3,2184.1,1.1894]
[1741506733047,0.54949,2184.2,2184.1,1.1894]
[1741506733451,3.2078,2184.2,2183.6,2.985]
[1741506733651,3.2078,2184.2,2183.7,2.5584]
[1741506733954,0.54959,2183.8,2183.7,2.5584]
[1741506734343,0.54958,2183.9,2183.7,2.5584]
[1741506734548,0.54956,2184.0,2183.7,3.10802]
[1741506734851,0.54959,2183.8,2183.7,2.5584]
[1741506735462,0.54958,2183.9,2183.7,2.5584]
[1741506735656,0.54959,2183.8,2183.7,2.5584]
[1741506743052,3.2078,2184.2,2183.7,2.5584]
[1741506743259,0.54959,2183.8,2183.7,2.5584]
[1741506748961,1.17638,2183.9,2183.7,3.10801]
[1741506749264,0.54958,2183.9,2183.7,3.10801]
[1741506749763,0.54958,2183.9,2183.7,2.5584]
[1741506749963,0.54955,2184.0,2183.7,3.10801]
[1741506750668,3.2078,2184.2,2183.7,2.5584]
[1741506750965,0.54956,2184.0,2183.7,3.108]
[1741506751169,0.54957,2183.9,2183.7,2.5584]
[1741506751658,3.2078,2184.2,2183.8,0.54959]
[1741506751861,0.54953,2184.1,2183.9,0.6402]
[1741506752264,0.54953,2184.1,2184.0,0.6117]
[1741506752561,0.54958,2183.9,2183.7,2.5584]
[1741506752767,0.54958,2183.9,2183.8,1.2226]
[1741506753571,3.2078,2184.2,2183.7,2.5584]
[1741506753865,0.54959,2183.8,2183.7,2.5584]
[1741506765771,0.54959,2183.9,2183.7,2.5584]
[1741506767390,4.58157,2184.2,2183.7,2.5584]
[1741506767588,0.54959,2183.9,2183.7,2.5584]
[1741506768392,4.58157,2184.2,2183.7,2.5584]
[1741506768588,0.54959,2183.9,2183.7,2.5584]
[1741506769682,0.54959,2183.9,2183.7,3.10802]
[1741506770290,4.58157,2184.2,2183.7,2.5584]
[1741506770694,0.54958,2183.9,2183.7,2.5584]
[1741506771595,0.54959,2183.8,2183.7,2.5584]
[1741506771990,0.54959,2183.8,2183.7,0.6004]
[1741506781803,3.2078,2184.2,2183.7,0.6004]
[1741506782100,0.54957,2183.9,2183.7,1.15001]
[1741506782402,0.54957,2183.9,2183.7,0.6004]
[1741506783102,0.54957,2183.9,2183.7,1.15002]
[1741506783401,0.54957,2183.9,2183.7,0.6004]
[1741506783709,0.54957,2183.9,2183.7,1.15001]
[1741506784306,0.54957,2183.9,2183.7,0.6004]
[1741506785198,3.2078,2184.2,2183.7,1.15002]
[1741506785700,0.00686986,2184.4,2183.8,3.2078]
[1741506786000,0.54949,2184.3,2184.0,0.54954]
[1741506786219,0.54949,2184.3,2184.1,1.2353]
[1741506786598,0.54949,2184.3,2184.2,0.606]
[1741506789409,0.55633986,2184.4,2184.2,0.606]
[1741506790304,0.00686986,2184.4,2184.3,0.54947]
[1741506790802,0.00686986,2184.4,2184.2,0.606]
[1741506791004,0.55633986,2184.4,2184.2,0.606]
[1741506791205,0.54947,2184.3,2184.2,0.606]
[1741506791408,0.54949,2184.2,2184.1,3.823]
[1741506791606,0.54949,2184.2,2184.1,3.2078]
[1741506793415,0.54957,2184.0,2183.8,0.54958]
[1741506794113,0.54957,2183.9,2183.7,7.5902]
[1741506794314,3.2078,2184.2,2183.7,7.0406]
[1741506794513,0.54957,2184.0,2183.8,0.54959]
[1741506795409,0.54957,2184.0,2183.7,5.63221]
[1741506795610,1.8547,2184.3,2183.8,1.959]
[1741506795915,0.54957,2183.9,2183.8,1.959]
[1741506798218,0.54957,2183.9,2183.7,5.63222]
[1741506798419,3.2078,2184.2,2183.7,7.0406]
[1741506798617,0.54959,2183.9,2183.7,7.0406]
[1741506799511,0.54959,2183.9,2183.7,7.59021]
[1741506800819,0.54959,2183.9,2183.7,7.0406]
[1741506801712,3.2078,2184.2,2183.7,7.0406]
[1741506801907,3.2078,2184.2,2183.8,0.54959]
[1741506802117,0.54954,2184.1,2183.8,0.54959]
[1741506802310,0.54954,2184.1,2183.7,7.5902]
[1741506802722,3.2078,2184.2,2183.7,7.5902]
[1741506802920,0.54954,2184.1,2183.7,7.5902]
[1741506804022,0.54952,2184.1,2183.7,7.5902]
[1741506805124,0.54952,2184.1,2183.8,0.54959]
[1741506805721,3.2078,2184.2,2183.8,0.54959]
[1741506806327,0.54953,2184.1,2183.8,0.54959]
[1741506806519,0.54953,2184.1,2183.7,7.0406]
[1741506806827,0.54953,2184.1,2183.8,0.54958]
[1741506808723,3.2078,2184.2,2183.7,7.0406]
[1741506809026,2.40418,2184.3,2184.0,0.54954]
[1741506809221,1.8547,2184.3,2184.1,1.8414]
[1741506809619,1.77168,2184.3,2184.1,1.8414]
[1741506810620,0.55632986,2184.4,2184.1,2.39092]
[1741506810817,0.00686986,2184.4,2184.1,1.8414]
[1741506811428,0.54949,2184.3,2184.1,1.8414]
[1741506811824,0.55633986,2184.4,2184.1,2.39092]
[1741506812128,0.55632986,2184.4,2184.1,1.8414]
[1741506812536,0.55632986,2184.4,2184.1,2.39092]
[1741506812731,0.00686986,2184.4,2184.1,1.8414]
[1741506813029,0.00686986,2184.4,2184.2,0.54949]
[1741506813432,0.55631986,2184.4,2184.1,4.3489]
[1741506813631,0.00686986,2184.4,2184.1,4.3489]
[1741506814726,0.00686986,2184.4,2184.2,0.54949]
[1741506816727,0.55631986,2184.4,2184.1,4.34891]
[1741506816930,0.00686986,2184.4,2184.1,4.3489]
[1741506817334,0.00686986,2184.4,2184.2,0.54948]
[1741506817835,0.00686986,2184.4,2184.3,3.2078]
[1741506818228,0.00686986,2184.4,2184.3,3.75727]
[1741506819440,0.00686986,2184.4,2184.3,0.54947]
[1741506821636,0.00686986,2184.4,2184.3,3.75727]
[1741506821839,0.00686986,2184.4,2184.3,3.2078]
[1741506822232,0.55630986,2184.4,2184.3,3.2078]
[1741506822433,0.00686986,2184.4,2184.3,3.2078]
[1741506824041,1.16490986,2184.4,2184.3,3.2078]
[1741506824237,0.61546986,2184.4,2184.3,3.2078]
[1741506824439,1.16490986,2184.4,2184.3,3.2078]
[1741506824641,0.61546986,2184.4,2184.3,3.2078]
[1741506824842,1.16490986,2184.4,2184.3,3.2078]
[1741506825339,0.61546986,2184.4,2184.3,3.2078]
[1741506826236,0.00686986,2184.4,2184.3,3.2078]
[1741506827151,0.00686986,2184.4,2184.3,3.75727]
[1741506828641,0.55630986,2184.4,2184.3,3.2078]
[1741506831344,0.00686986,2184.4,2184.3,3.2078]
[1741506831743,0.55630986,2184.4,2184.3,3.2078]
[1741506833041,0.55630986,2184.4,2184.2,5.71529]
[1741506833646,0.54947,2184.3,2184.2,5.1658]
[1741506834045,0.00686986,2184.4,2184.2,5.1658]
[1741506834247,0.55633986,2184.4,2184.2,5.1658]
[1741506835544,0.00686986,2184.4,2184.2,5.1658]
[1741506835749,0.00686986,2184.4,2184.2,5.71528]
[1741506836346,0.55630986,2184.4,2184.2,5.1658]
[1741506837447,0.00686986,2184.4,2184.2,5.1658]
[1741506837756,0.55631986,2184.4,2184.2,5.1658]
[1741506839150,0.00686986,2184.4,2184.2,5.1658]
[1741506839353,0.00686986,2184.4,2184.2,5.71529]
[1741506840049,0.00686986,2184.4,2184.2,5.71528]
[1741506840347,0.00686986,2184.4,2184.2,5.1658]
[1741506840647,0.00686986,2184.4,2184.2,5.71529]
[1741506842049,0.00686986,2184.4,2184.2,5.71528]
[1741506845447,0.00686986,2184.4,2184.2,5.1658]
[1741506845754,0.55632986,2184.4,2184.2,5.1658]
[1741506846655,0.54947,2184.3,2184.2,3.2078]
[1741506846851,0.54954,2184.0,2183.9,20.553]
[1741506853953,3.75734,2184.0,2183.9,20.553]